Workbook

Sheet Tabelle1
A2: Name | B2: WKN | C2: ISIN | D2: lfd. J. | E2: 1J. | F2: 3J. | G2: 5J. | H2: 10J.
A3: iShares Core MSCI World UCITS ETF USD (Acc) | B3: A0RPWH | C3: IE00B4L5Y983 | D3: =IFERROR(MID(VLOOKUP($C3,Tabelle2!$C:$D,2,FALSE),FIND("#",SUBSTITUTE(VLOOKUP($C3,Tabelle2!$C:$D,2,FALSE),""">","#",IF(ISERROR(SEARCH("EUR",$A3)),2,1)))+2,FIND("%",MID(VLOOKUP($C3,Tabelle2!$C:$D,2,FALSE),FIND("#",SUBSTITUTE(VLOOKUP($C3,Tabelle2!$C:$D,2,FALSE),""">","#",IF(ISERROR(SEARCH("EUR",$A3)),2,1)))+2,10))-1)/100,"") -> 0.1053 | E3: =IFERROR(MID(VLOOKUP($C3,Tabelle2!$C:$D,2,FALSE),FIND("#",SUBSTITUTE(VLOOKUP($C3,Tabelle2!$C:$D,2,FALSE),""">","#",IF(ISERROR(SEARCH("EUR",$A3)),5,3)))+2,FIND("%",MID(VLOOKUP($C3,Tabelle2!$C:$D,2,FALSE),FIND("#",SUBSTITUTE(VLOOKUP($C3,Tabelle2!$C:$D,2,FALSE),""">","#",IF(ISERROR(SEARCH("EUR",$A3)),5,3)))+2,10))-1)/100,"") -> 0.0982 | F3: =IFERROR(MID(VLOOKUP($C3,Tabelle2!$C:$D,2,FALSE),FIND("#",SUBSTITUTE(VLOOKUP($C3,Tabelle2!$C:$D,2,FALSE),""">","#",IF(ISERROR(SEARCH("EUR",$A3)),8,5)))+2,FIND("%",MID(VLOOKUP($C3,Tabelle2!$C:$D,2,FALSE),FIND("#",SUBSTITUTE(VLOOKUP($C3,Tabelle2!$C:$D,2,FALSE),""">","#",IF(ISERROR(SEARCH("EUR",$A3)),8,5)))+2,10))-1)/100,"") -> 0.4632 | G3: =IFERROR(MID(VLOOKUP($C3,Tabelle2!$C:$D,2,FALSE),FIND("#",SUBSTITUTE(VLOOKUP($C3,Tabelle2!$C:$D,2,FALSE),""">","#",IF(ISERROR(SEARCH("EUR",$A3)),11,7)))+2,FIND("%",MID(VLOOKUP($C3,Tabelle2!$C:$D,2,FALSE),FIND("#",SUBSTITUTE(VLOOKUP($C3,Tabelle2!$C:$D,2,FALSE),""">","#",IF(ISERROR(SEARCH("EUR",$A3)),11,7)))+2,11))-1)/100,"") -> 0.6739 | H3: =IFERROR(MID(VLOOKUP($C3,Tabelle2!$C:$D,2,FALSE),FIND("#",SUBSTITUTE(VLOOKUP($C3,Tabelle2!$C:$D,2,FALSE),""">","#",IF(ISERROR(SEARCH("EUR",$A3)),14,9)))+2,FIND("%",MID(VLOOKUP($C3,Tabelle2!$C:$D,2,FALSE),FIND("#",SUBSTITUTE(VLOOKUP($C3,Tabelle2!$C:$D,2,FALSE),""">","#",IF(ISERROR(SEARCH("EUR",$A3)),14,9)))+2,11))-1)/100,"") -> 
A4: ComStage MSCI World TRN UCITS ETF | B4: ETF110 | C4: LU0392494562 | D4: =IFERROR(MID(VLOOKUP($C4,Tabelle2!$C:$D,2,FALSE),FIND("#",SUBSTITUTE(VLOOKUP($C4,Tabelle2!$C:$D,2,FALSE),""">","#",IF(ISERROR(SEARCH("EUR",$A4)),2,1)))+2,FIND("%",MID(VLOOKUP($C4,Tabelle2!$C:$D,2,FALSE),FIND("#",SUBSTITUTE(VLOOKUP($C4,Tabelle2!$C:$D,2,FALSE),""">","#",IF(ISERROR(SEARCH("EUR",$A4)),2,1)))+2,10))-1)/100,"") -> 0.1135 | E4: =IFERROR(MID(VLOOKUP($C4,Tabelle2!$C:$D,2,FALSE),FIND("#",SUBSTITUTE(VLOOKUP($C4,Tabelle2!$C:$D,2,FALSE),""">","#",IF(ISERROR(SEARCH("EUR",$A4)),5,3)))+2,FIND("%",MID(VLOOKUP($C4,Tabelle2!$C:$D,2,FALSE),FIND("#",SUBSTITUTE(VLOOKUP($C4,Tabelle2!$C:$D,2,FALSE),""">","#",IF(ISERROR(SEARCH("EUR",$A4)),5,3)))+2,10))-1)/100,"") -> 0.0991 | F4: =IFERROR(MID(VLOOKUP($C4,Tabelle2!$C:$D,2,FALSE),FIND("#",SUBSTITUTE(VLOOKUP($C4,Tabelle2!$C:$D,2,FALSE),""">","#",IF(ISERROR(SEARCH("EUR",$A4)),8,5)))+2,FIND("%",MID(VLOOKUP($C4,Tabelle2!$C:$D,2,FALSE),FIND("#",SUBSTITUTE(VLOOKUP($C4,Tabelle2!$C:$D,2,FALSE),""">","#",IF(ISERROR(SEARCH("EUR",$A4)),8,5)))+2,10))-1)/100,"") -> 0.462 | G4: =IFERROR(MID(VLOOKUP($C4,Tabelle2!$C:$D,2,FALSE),FIND("#",SUBSTITUTE(VLOOKUP($C4,Tabelle2!$C:$D,2,FALSE),""">","#",IF(ISERROR(SEARCH("EUR",$A4)),11,7)))+2,FIND("%",MID(VLOOKUP($C4,Tabelle2!$C:$D,2,FALSE),FIND("#",SUBSTITUTE(VLOOKUP($C4,Tabelle2!$C:$D,2,FALSE),""">","#",IF(ISERROR(SEARCH("EUR",$A4)),11,7)))+2,11))-1)/100,"") -> 0.6666 | H4: =IFERROR(MID(VLOOKUP($C4,Tabelle2!$C:$D,2,FALSE),FIND("#",SUBSTITUTE(VLOOKUP($C4,Tabelle2!$C:$D,2,FALSE),""">","#",IF(ISERROR(SEARCH("EUR",$A4)),14,9)))+2,FIND("%",MID(VLOOKUP($C4,Tabelle2!$C:$D,2,FALSE),FIND("#",SUBSTITUTE(VLOOKUP($C4,Tabelle2!$C:$D,2,FALSE),""">","#",IF(ISERROR(SEARCH("EUR",$A4)),14,9)))+2,11))-1)/100,"") -> 2.4157
A5: Lyxor MSCI World UCITS ETF D-EUR | B5: LYX0AG | C5: FR0010315770 | D5: =IFERROR(MID(VLOOKUP($C5,Tabelle2!$C:$D,2,FALSE),FIND("#",SUBSTITUTE(VLOOKUP($C5,Tabelle2!$C:$D,2,FALSE),""">","#",IF(ISERROR(SEARCH("EUR",$A5)),2,1)))+2,FIND("%",MID(VLOOKUP($C5,Tabelle2!$C:$D,2,FALSE),FIND("#",SUBSTITUTE(VLOOKUP($C5,Tabelle2!$C:$D,2,FALSE),""">","#",IF(ISERROR(SEARCH("EUR",$A5)),2,1)))+2,10))-1)/100,"") -> 0.1051 | E5: =IFERROR(MID(VLOOKUP($C5,Tabelle2!$C:$D,2,FALSE),FIND("#",SUBSTITUTE(VLOOKUP($C5,Tabelle2!$C:$D,2,FALSE),""">","#",IF(ISERROR(SEARCH("EUR",$A5)),5,3)))+2,FIND("%",MID(VLOOKUP($C5,Tabelle2!$C:$D,2,FALSE),FIND("#",SUBSTITUTE(VLOOKUP($C5,Tabelle2!$C:$D,2,FALSE),""">","#",IF(ISERROR(SEARCH("EUR",$A5)),5,3)))+2,10))-1)/100,"") -> 0.1013 | F5: =IFERROR(MID(VLOOKUP($C5,Tabelle2!$C:$D,2,FALSE),FIND("#",SUBSTITUTE(VLOOKUP($C5,Tabelle2!$C:$D,2,FALSE),""">","#",IF(ISERROR(SEARCH("EUR",$A5)),8,5)))+2,FIND("%",MID(VLOOKUP($C5,Tabelle2!$C:$D,2,FALSE),FIND("#",SUBSTITUTE(VLOOKUP($C5,Tabelle2!$C:$D,2,FALSE),""">","#",IF(ISERROR(SEARCH("EUR",$A5)),8,5)))+2,10))-1)/100,"") -> 0.4592 | G5: =IFERROR(MID(VLOOKUP($C5,Tabelle2!$C:$D,2,FALSE),FIND("#",SUBSTITUTE(VLOOKUP($C5,Tabelle2!$C:$D,2,FALSE),""">","#",IF(ISERROR(SEARCH("EUR",$A5)),11,7)))+2,FIND("%",MID(VLOOKUP($C5,Tabelle2!$C:$D,2,FALSE),FIND("#",SUBSTITUTE(VLOOKUP($C5,Tabelle2!$C:$D,2,FALSE),""">","#",IF(ISERROR(SEARCH("EUR",$A5)),11,7)))+2,11))-1)/100,"") -> 0.6674 | H5: =IFERROR(MID(VLOOKUP($C5,Tabelle2!$C:$D,2,FALSE),FIND("#",SUBSTITUTE(VLOOKUP($C5,Tabelle2!$C:$D,2,FALSE),""">","#",IF(ISERROR(SEARCH("EUR",$A5)),14,9)))+2,FIND("%",MID(VLOOKUP($C5,Tabelle2!$C:$D,2,FALSE),FIND("#",SUBSTITUTE(VLOOKUP($C5,Tabelle2!$C:$D,2,FALSE),""">","#",IF(ISERROR(SEARCH("EUR",$A5)),14,9)))+2,11))-1)/100,"") -> 2.3515
A6: HSBC MSCI WORLD UCITS ETF | B6: A1C9KL | C6: DE000A1C9KL8 | D6: =IFERROR(MID(VLOOKUP($C6,Tabelle2!$C:$D,2,FALSE),FIND("#",SUBSTITUTE(VLOOKUP($C6,Tabelle2!$C:$D,2,FALSE),""">","#",IF(ISERROR(SEARCH("EUR",$A6)),2,1)))+2,FIND("%",MID(VLOOKUP($C6,Tabelle2!$C:$D,2,FALSE),FIND("#",SUBSTITUTE(VLOOKUP($C6,Tabelle2!$C:$D,2,FALSE),""">","#",IF(ISERROR(SEARCH("EUR",$A6)),2,1)))+2,10))-1)/100,"") -> 0.1053 | E6: =IFERROR(MID(VLOOKUP($C6,Tabelle2!$C:$D,2,FALSE),FIND("#",SUBSTITUTE(VLOOKUP($C6,Tabelle2!$C:$D,2,FALSE),""">","#",IF(ISERROR(SEARCH("EUR",$A6)),5,3)))+2,FIND("%",MID(VLOOKUP($C6,Tabelle2!$C:$D,2,FALSE),FIND("#",SUBSTITUTE(VLOOKUP($C6,Tabelle2!$C:$D,2,FALSE),""">","#",IF(ISERROR(SEARCH("EUR",$A6)),5,3)))+2,10))-1)/100,"") -> 0.1022 | F6: =IFERROR(MID(VLOOKUP($C6,Tabelle2!$C:$D,2,FALSE),FIND("#",SUBSTITUTE(VLOOKUP($C6,Tabelle2!$C:$D,2,FALSE),""">","#",IF(ISERROR(SEARCH("EUR",$A6)),8,5)))+2,FIND("%",MID(VLOOKUP($C6,Tabelle2!$C:$D,2,FALSE),FIND("#",SUBSTITUTE(VLOOKUP($C6,Tabelle2!$C:$D,2,FALSE),""">","#",IF(ISERROR(SEARCH("EUR",$A6)),8,5)))+2,10))-1)/100,"") -> 0.472 | G6: =IFERROR(MID(VLOOKUP($C6,Tabelle2!$C:$D,2,FALSE),FIND("#",SUBSTITUTE(VLOOKUP($C6,Tabelle2!$C:$D,2,FALSE),""">","#",IF(ISERROR(SEARCH("EUR",$A6)),11,7)))+2,FIND("%",MID(VLOOKUP($C6,Tabelle2!$C:$D,2,FALSE),FIND("#",SUBSTITUTE(VLOOKUP($C6,Tabelle2!$C:$D,2,FALSE),""">","#",IF(ISERROR(SEARCH("EUR",$A6)),11,7)))+2,11))-1)/100,"") -> 0.6636 | H6: =IFERROR(MID(VLOOKUP($C6,Tabelle2!$C:$D,2,FALSE),FIND("#",SUBSTITUTE(VLOOKUP($C6,Tabelle2!$C:$D,2,FALSE),""">","#",IF(ISERROR(SEARCH("EUR",$A6)),14,9)))+2,FIND("%",MID(VLOOKUP($C6,Tabelle2!$C:$D,2,FALSE),FIND("#",SUBSTITUTE(VLOOKUP($C6,Tabelle2!$C:$D,2,FALSE),""">","#",IF(ISERROR(SEARCH("EUR",$A6)),14,9)))+2,11))-1)/100,"") -> 
A7: Amundi MSCI World UCITS ETF - EUR (C) | B7: A2H59Q | C7: LU1681043599 | D7: =IFERROR(MID(VLOOKUP($C7,Tabelle2!$C:$D,2,FALSE),FIND("#",SUBSTITUTE(VLOOKUP($C7,Tabelle2!$C:$D,2,FALSE),""">","#",IF(ISERROR(SEARCH("EUR",$A7)),2,1)))+2,FIND("%",MID(VLOOKUP($C7,Tabelle2!$C:$D,2,FALSE),FIND("#",SUBSTITUTE(VLOOKUP($C7,Tabelle2!$C:$D,2,FALSE),""">","#",IF(ISERROR(SEARCH("EUR",$A7)),2,1)))+2,10))-1)/100,"") -> 0.0995 | E7: =IFERROR(MID(VLOOKUP($C7,Tabelle2!$C:$D,2,FALSE),FIND("#",SUBSTITUTE(VLOOKUP($C7,Tabelle2!$C:$D,2,FALSE),""">","#",IF(ISERROR(SEARCH("EUR",$A7)),5,3)))+2,FIND("%",MID(VLOOKUP($C7,Tabelle2!$C:$D,2,FALSE),FIND("#",SUBSTITUTE(VLOOKUP($C7,Tabelle2!$C:$D,2,FALSE),""">","#",IF(ISERROR(SEARCH("EUR",$A7)),5,3)))+2,10))-1)/100,"") ->  | F7: =IFERROR(MID(VLOOKUP($C7,Tabelle2!$C:$D,2,FALSE),FIND("#",SUBSTITUTE(VLOOKUP($C7,Tabelle2!$C:$D,2,FALSE),""">","#",IF(ISERROR(SEARCH("EUR",$A7)),8,5)))+2,FIND("%",MID(VLOOKUP($C7,Tabelle2!$C:$D,2,FALSE),FIND("#",SUBSTITUTE(VLOOKUP($C7,Tabelle2!$C:$D,2,FALSE),""">","#",IF(ISERROR(SEARCH("EUR",$A7)),8,5)))+2,10))-1)/100,"") ->  | G7: =IFERROR(MID(VLOOKUP($C7,Tabelle2!$C:$D,2,FALSE),FIND("#",SUBSTITUTE(VLOOKUP($C7,Tabelle2!$C:$D,2,FALSE),""">","#",IF(ISERROR(SEARCH("EUR",$A7)),11,7)))+2,FIND("%",MID(VLOOKUP($C7,Tabelle2!$C:$D,2,FALSE),FIND("#",SUBSTITUTE(VLOOKUP($C7,Tabelle2!$C:$D,2,FALSE),""">","#",IF(ISERROR(SEARCH("EUR",$A7)),11,7)))+2,11))-1)/100,"") ->  | H7: =IFERROR(MID(VLOOKUP($C7,Tabelle2!$C:$D,2,FALSE),FIND("#",SUBSTITUTE(VLOOKUP($C7,Tabelle2!$C:$D,2,FALSE),""">","#",IF(ISERROR(SEARCH("EUR",$A7)),14,9)))+2,FIND("%",MID(VLOOKUP($C7,Tabelle2!$C:$D,2,FALSE),FIND("#",SUBSTITUTE(VLOOKUP($C7,Tabelle2!$C:$D,2,FALSE),""">","#",IF(ISERROR(SEARCH("EUR",$A7)),14,9)))+2,11))-1)/100,"") -> 
A8: Xtrackers MSCI World Index UCITS ETF 1D | B8: A1XEY2 | C8: IE00BK1PV551 | D8: =IFERROR(MID(VLOOKUP($C8,Tabelle2!$C:$D,2,FALSE),FIND("#",SUBSTITUTE(VLOOKUP($C8,Tabelle2!$C:$D,2,FALSE),""">","#",IF(ISERROR(SEARCH("EUR",$A8)),2,1)))+2,FIND("%",MID(VLOOKUP($C8,Tabelle2!$C:$D,2,FALSE),FIND("#",SUBSTITUTE(VLOOKUP($C8,Tabelle2!$C:$D,2,FALSE),""">","#",IF(ISERROR(SEARCH("EUR",$A8)),2,1)))+2,10))-1)/100,"") -> 0.1133 | E8: =IFERROR(MID(VLOOKUP($C8,Tabelle2!$C:$D,2,FALSE),FIND("#",SUBSTITUTE(VLOOKUP($C8,Tabelle2!$C:$D,2,FALSE),""">","#",IF(ISERROR(SEARCH("EUR",$A8)),5,3)))+2,FIND("%",MID(VLOOKUP($C8,Tabelle2!$C:$D,2,FALSE),FIND("#",SUBSTITUTE(VLOOKUP($C8,Tabelle2!$C:$D,2,FALSE),""">","#",IF(ISERROR(SEARCH("EUR",$A8)),5,3)))+2,10))-1)/100,"") -> 0.0982 | F8: =IFERROR(MID(VLOOKUP($C8,Tabelle2!$C:$D,2,FALSE),FIND("#",SUBSTITUTE(VLOOKUP($C8,Tabelle2!$C:$D,2,FALSE),""">","#",IF(ISERROR(SEARCH("EUR",$A8)),8,5)))+2,FIND("%",MID(VLOOKUP($C8,Tabelle2!$C:$D,2,FALSE),FIND("#",SUBSTITUTE(VLOOKUP($C8,Tabelle2!$C:$D,2,FALSE),""">","#",IF(ISERROR(SEARCH("EUR",$A8)),8,5)))+2,10))-1)/100,"") -> 0.463 | G8: =IFERROR(MID(VLOOKUP($C8,Tabelle2!$C:$D,2,FALSE),FIND("#",SUBSTITUTE(VLOOKUP($C8,Tabelle2!$C:$D,2,FALSE),""">","#",IF(ISERROR(SEARCH("EUR",$A8)),11,7)))+2,FIND("%",MID(VLOOKUP($C8,Tabelle2!$C:$D,2,FALSE),FIND("#",SUBSTITUTE(VLOOKUP($C8,Tabelle2!$C:$D,2,FALSE),""">","#",IF(ISERROR(SEARCH("EUR",$A8)),11,7)))+2,11))-1)/100,"") ->  | H8: =IFERROR(MID(VLOOKUP($C8,Tabelle2!$C:$D,2,FALSE),FIND("#",SUBSTITUTE(VLOOKUP($C8,Tabelle2!$C:$D,2,FALSE),""">","#",IF(ISERROR(SEARCH("EUR",$A8)),14,9)))+2,FIND("%",MID(VLOOKUP($C8,Tabelle2!$C:$D,2,FALSE),FIND("#",SUBSTITUTE(VLOOKUP($C8,Tabelle2!$C:$D,2,FALSE),""">","#",IF(ISERROR(SEARCH("EUR",$A8)),14,9)))+2,11))-1)/100,"") -> 
A9: Xtrackers MSCI World Index UCITS ETF 1C | B9: A1XB5U | C9: IE00BJ0KDQ92 | D9: =IFERROR(MID(VLOOKUP($C9,Tabelle2!$C:$D,2,FALSE),FIND("#",SUBSTITUTE(VLOOKUP($C9,Tabelle2!$C:$D,2,FALSE),""">","#",IF(ISERROR(SEARCH("EUR",$A9)),2,1)))+2,FIND("%",MID(VLOOKUP($C9,Tabelle2!$C:$D,2,FALSE),FIND("#",SUBSTITUTE(VLOOKUP($C9,Tabelle2!$C:$D,2,FALSE),""">","#",IF(ISERROR(SEARCH("EUR",$A9)),2,1)))+2,10))-1)/100,"") -> 0.1133 | E9: =IFERROR(MID(VLOOKUP($C9,Tabelle2!$C:$D,2,FALSE),FIND("#",SUBSTITUTE(VLOOKUP($C9,Tabelle2!$C:$D,2,FALSE),""">","#",IF(ISERROR(SEARCH("EUR",$A9)),5,3)))+2,FIND("%",MID(VLOOKUP($C9,Tabelle2!$C:$D,2,FALSE),FIND("#",SUBSTITUTE(VLOOKUP($C9,Tabelle2!$C:$D,2,FALSE),""">","#",IF(ISERROR(SEARCH("EUR",$A9)),5,3)))+2,10))-1)/100,"") -> 0.0983 | F9: =IFERROR(MID(VLOOKUP($C9,Tabelle2!$C:$D,2,FALSE),FIND("#",SUBSTITUTE(VLOOKUP($C9,Tabelle2!$C:$D,2,FALSE),""">","#",IF(ISERROR(SEARCH("EUR",$A9)),8,5)))+2,FIND("%",MID(VLOOKUP($C9,Tabelle2!$C:$D,2,FALSE),FIND("#",SUBSTITUTE(VLOOKUP($C9,Tabelle2!$C:$D,2,FALSE),""">","#",IF(ISERROR(SEARCH("EUR",$A9)),8,5)))+2,10))-1)/100,"") -> 0.4631 | G9: =IFERROR(MID(VLOOKUP($C9,Tabelle2!$C:$D,2,FALSE),FIND("#",SUBSTITUTE(VLOOKUP($C9,Tabelle2!$C:$D,2,FALSE),""">","#",IF(ISERROR(SEARCH("EUR",$A9)),11,7)))+2,FIND("%",MID(VLOOKUP($C9,Tabelle2!$C:$D,2,FALSE),FIND("#",SUBSTITUTE(VLOOKUP($C9,Tabelle2!$C:$D,2,FALSE),""">","#",IF(ISERROR(SEARCH("EUR",$A9)),11,7)))+2,11))-1)/100,"") ->  | H9: =IFERROR(MID(VLOOKUP($C9,Tabelle2!$C:$D,2,FALSE),FIND("#",SUBSTITUTE(VLOOKUP($C9,Tabelle2!$C:$D,2,FALSE),""">","#",IF(ISERROR(SEARCH("EUR",$A9)),14,9)))+2,FIND("%",MID(VLOOKUP($C9,Tabelle2!$C:$D,2,FALSE),FIND("#",SUBSTITUTE(VLOOKUP($C9,Tabelle2!$C:$D,2,FALSE),""">","#",IF(ISERROR(SEARCH("EUR",$A9)),14,9)))+2,11))-1)/100,"") -> 
A10: Invesco MSCI World UCITS ETF | B10: A0RGCS | C10: IE00B60SX394 | D10: =IFERROR(MID(VLOOKUP($C10,Tabelle2!$C:$D,2,FALSE),FIND("#",SUBSTITUTE(VLOOKUP($C10,Tabelle2!$C:$D,2,FALSE),""">","#",IF(ISERROR(SEARCH("EUR",$A10)),2,1)))+2,FIND("%",MID(VLOOKUP($C10,Tabelle2!$C:$D,2,FALSE),FIND("#",SUBSTITUTE(VLOOKUP($C10,Tabelle2!$C:$D,2,FALSE),""">","#",IF(ISERROR(SEARCH("EUR",$A10)),2,1)))+2,10))-1)/100,"") -> 0.1054 | E10: =IFERROR(MID(VLOOKUP($C10,Tabelle2!$C:$D,2,FALSE),FIND("#",SUBSTITUTE(VLOOKUP($C10,Tabelle2!$C:$D,2,FALSE),""">","#",IF(ISERROR(SEARCH("EUR",$A10)),5,3)))+2,FIND("%",MID(VLOOKUP($C10,Tabelle2!$C:$D,2,FALSE),FIND("#",SUBSTITUTE(VLOOKUP($C10,Tabelle2!$C:$D,2,FALSE),""">","#",IF(ISERROR(SEARCH("EUR",$A10)),5,3)))+2,10))-1)/100,"") -> 0.0986 | F10: =IFERROR(MID(VLOOKUP($C10,Tabelle2!$C:$D,2,FALSE),FIND("#",SUBSTITUTE(VLOOKUP($C10,Tabelle2!$C:$D,2,FALSE),""">","#",IF(ISERROR(SEARCH("EUR",$A10)),8,5)))+2,FIND("%",MID(VLOOKUP($C10,Tabelle2!$C:$D,2,FALSE),FIND("#",SUBSTITUTE(VLOOKUP($C10,Tabelle2!$C:$D,2,FALSE),""">","#",IF(ISERROR(SEARCH("EUR",$A10)),8,5)))+2,10))-1)/100,"") -> 0.4621 | G10: =IFERROR(MID(VLOOKUP($C10,Tabelle2!$C:$D,2,FALSE),FIND("#",SUBSTITUTE(VLOOKUP($C10,Tabelle2!$C:$D,2,FALSE),""">","#",IF(ISERROR(SEARCH("EUR",$A10)),11,7)))+2,FIND("%",MID(VLOOKUP($C10,Tabelle2!$C:$D,2,FALSE),FIND("#",SUBSTITUTE(VLOOKUP($C10,Tabelle2!$C:$D,2,FALSE),""">","#",IF(ISERROR(SEARCH("EUR",$A10)),11,7)))+2,11))-1)/100,"") -> 0.6608 | H10: =IFERROR(MID(VLOOKUP($C10,Tabelle2!$C:$D,2,FALSE),FIND("#",SUBSTITUTE(VLOOKUP($C10,Tabelle2!$C:$D,2,FALSE),""">","#",IF(ISERROR(SEARCH("EUR",$A10)),14,9)))+2,FIND("%",MID(VLOOKUP($C10,Tabelle2!$C:$D,2,FALSE),FIND("#",SUBSTITUTE(VLOOKUP($C10,Tabelle2!$C:$D,2,FALSE),""">","#",IF(ISERROR(SEARCH("EUR",$A10)),14,9)))+2,11))-1)/100,"") -> 
A11: UBS ETF (IE) MSCI World UCITS ETF (USD) A-dis | B11: A1JVCA | C11: IE00B7KQ7B66 | D11: =IFERROR(MID(VLOOKUP($C11,Tabelle2!$C:$D,2,FALSE),FIND("#",SUBSTITUTE(VLOOKUP($C11,Tabelle2!$C:$D,2,FALSE),""">","#",IF(ISERROR(SEARCH("EUR",$A11)),2,1)))+2,FIND("%",MID(VLOOKUP($C11,Tabelle2!$C:$D,2,FALSE),FIND("#",SUBSTITUTE(VLOOKUP($C11,Tabelle2!$C:$D,2,FALSE),""">","#",IF(ISERROR(SEARCH("EUR",$A11)),2,1)))+2,10))-1)/100,"") -> 0.1053 | E11: =IFERROR(MID(VLOOKUP($C11,Tabelle2!$C:$D,2,FALSE),FIND("#",SUBSTITUTE(VLOOKUP($C11,Tabelle2!$C:$D,2,FALSE),""">","#",IF(ISERROR(SEARCH("EUR",$A11)),5,3)))+2,FIND("%",MID(VLOOKUP($C11,Tabelle2!$C:$D,2,FALSE),FIND("#",SUBSTITUTE(VLOOKUP($C11,Tabelle2!$C:$D,2,FALSE),""">","#",IF(ISERROR(SEARCH("EUR",$A11)),5,3)))+2,10))-1)/100,"") -> 0.0974 | F11: =IFERROR(MID(VLOOKUP($C11,Tabelle2!$C:$D,2,FALSE),FIND("#",SUBSTITUTE(VLOOKUP($C11,Tabelle2!$C:$D,2,FALSE),""">","#",IF(ISERROR(SEARCH("EUR",$A11)),8,5)))+2,FIND("%",MID(VLOOKUP($C11,Tabelle2!$C:$D,2,FALSE),FIND("#",SUBSTITUTE(VLOOKUP($C11,Tabelle2!$C:$D,2,FALSE),""">","#",IF(ISERROR(SEARCH("EUR",$A11)),8,5)))+2,10))-1)/100,"") -> 0.4592 | G11: =IFERROR(MID(VLOOKUP($C11,Tabelle2!$C:$D,2,FALSE),FIND("#",SUBSTITUTE(VLOOKUP($C11,Tabelle2!$C:$D,2,FALSE),""">","#",IF(ISERROR(SEARCH("EUR",$A11)),11,7)))+2,FIND("%",MID(VLOOKUP($C11,Tabelle2!$C:$D,2,FALSE),FIND("#",SUBSTITUTE(VLOOKUP($C11,Tabelle2!$C:$D,2,FALSE),""">","#",IF(ISERROR(SEARCH("EUR",$A11)),11,7)))+2,11))-1)/100,"") -> 0.6602 | H11: =IFERROR(MID(VLOOKUP($C11,Tabelle2!$C:$D,2,FALSE),FIND("#",SUBSTITUTE(VLOOKUP($C11,Tabelle2!$C:$D,2,FALSE),""">","#",IF(ISERROR(SEARCH("EUR",$A11)),14,9)))+2,FIND("%",MID(VLOOKUP($C11,Tabelle2!$C:$D,2,FALSE),FIND("#",SUBSTITUTE(VLOOKUP($C11,Tabelle2!$C:$D,2,FALSE),""">","#",IF(ISERROR(SEARCH("EUR",$A11)),14,9)))+2,11))-1)/100,"") -> 
A12: iShares MSCI World UCITS ETF (Dist) | B12: A0HGV0 | C12: IE00B0M62Q58 | D12: =IFERROR(MID(VLOOKUP($C12,Tabelle2!$C:$D,2,FALSE),FIND("#",SUBSTITUTE(VLOOKUP($C12,Tabelle2!$C:$D,2,FALSE),""">","#",IF(ISERROR(SEARCH("EUR",$A12)),2,1)))+2,FIND("%",MID(VLOOKUP($C12,Tabelle2!$C:$D,2,FALSE),FIND("#",SUBSTITUTE(VLOOKUP($C12,Tabelle2!$C:$D,2,FALSE),""">","#",IF(ISERROR(SEARCH("EUR",$A12)),2,1)))+2,10))-1)/100,"") -> 0.1047 | E12: =IFERROR(MID(VLOOKUP($C12,Tabelle2!$C:$D,2,FALSE),FIND("#",SUBSTITUTE(VLOOKUP($C12,Tabelle2!$C:$D,2,FALSE),""">","#",IF(ISERROR(SEARCH("EUR",$A12)),5,3)))+2,FIND("%",MID(VLOOKUP($C12,Tabelle2!$C:$D,2,FALSE),FIND("#",SUBSTITUTE(VLOOKUP($C12,Tabelle2!$C:$D,2,FALSE),""">","#",IF(ISERROR(SEARCH("EUR",$A12)),5,3)))+2,10))-1)/100,"") -> 0.0952 | F12: =IFERROR(MID(VLOOKUP($C12,Tabelle2!$C:$D,2,FALSE),FIND("#",SUBSTITUTE(VLOOKUP($C12,Tabelle2!$C:$D,2,FALSE),""">","#",IF(ISERROR(SEARCH("EUR",$A12)),8,5)))+2,FIND("%",MID(VLOOKUP($C12,Tabelle2!$C:$D,2,FALSE),FIND("#",SUBSTITUTE(VLOOKUP($C12,Tabelle2!$C:$D,2,FALSE),""">","#",IF(ISERROR(SEARCH("EUR",$A12)),8,5)))+2,10))-1)/100,"") -> 0.4541 | G12: =IFERROR(MID(VLOOKUP($C12,Tabelle2!$C:$D,2,FALSE),FIND("#",SUBSTITUTE(VLOOKUP($C12,Tabelle2!$C:$D,2,FALSE),""">","#",IF(ISERROR(SEARCH("EUR",$A12)),11,7)))+2,FIND("%",MID(VLOOKUP($C12,Tabelle2!$C:$D,2,FALSE),FIND("#",SUBSTITUTE(VLOOKUP($C12,Tabelle2!$C:$D,2,FALSE),""">","#",IF(ISERROR(SEARCH("EUR",$A12)),11,7)))+2,11))-1)/100,"") -> 0.6553 | H12: =IFERROR(MID(VLOOKUP($C12,Tabelle2!$C:$D,2,FALSE),FIND("#",SUBSTITUTE(VLOOKUP($C12,Tabelle2!$C:$D,2,FALSE),""">","#",IF(ISERROR(SEARCH("EUR",$A12)),14,9)))+2,FIND("%",MID(VLOOKUP($C12,Tabelle2!$C:$D,2,FALSE),FIND("#",SUBSTITUTE(VLOOKUP($C12,Tabelle2!$C:$D,2,FALSE),""">","#",IF(ISERROR(SEARCH("EUR",$A12)),14,9)))+2,11))-1)/100,"") -> 2.3093
A13: Flossbach v. Storch Multiple Opp. R EUR | B13: A0M430 | C13: LU0323578657 | D13: =IFERROR(MID(VLOOKUP($C13,Tabelle2!$C:$D,2,FALSE),FIND("#",SUBSTITUTE(VLOOKUP($C13,Tabelle2!$C:$D,2,FALSE),""">","#",IF(ISERROR(SEARCH("EUR",$A13)),2,1)))+2,FIND("%",MID(VLOOKUP($C13,Tabelle2!$C:$D,2,FALSE),FIND("#",SUBSTITUTE(VLOOKUP($C13,Tabelle2!$C:$D,2,FALSE),""">","#",IF(ISERROR(SEARCH("EUR",$A13)),2,1)))+2,10))-1)/100,"") -> 0.0644 | E13: =IFERROR(MID(VLOOKUP($C13,Tabelle2!$C:$D,2,FALSE),FIND("#",SUBSTITUTE(VLOOKUP($C13,Tabelle2!$C:$D,2,FALSE),""">","#",IF(ISERROR(SEARCH("EUR",$A13)),5,3)))+2,FIND("%",MID(VLOOKUP($C13,Tabelle2!$C:$D,2,FALSE),FIND("#",SUBSTITUTE(VLOOKUP($C13,Tabelle2!$C:$D,2,FALSE),""">","#",IF(ISERROR(SEARCH("EUR",$A13)),5,3)))+2,10))-1)/100,"") -> 0.0374 | F13: =IFERROR(MID(VLOOKUP($C13,Tabelle2!$C:$D,2,FALSE),FIND("#",SUBSTITUTE(VLOOKUP($C13,Tabelle2!$C:$D,2,FALSE),""">","#",IF(ISERROR(SEARCH("EUR",$A13)),8,5)))+2,FIND("%",MID(VLOOKUP($C13,Tabelle2!$C:$D,2,FALSE),FIND("#",SUBSTITUTE(VLOOKUP($C13,Tabelle2!$C:$D,2,FALSE),""">","#",IF(ISERROR(SEARCH("EUR",$A13)),8,5)))+2,10))-1)/100,"") -> 0.2089 | G13: =IFERROR(MID(VLOOKUP($C13,Tabelle2!$C:$D,2,FALSE),FIND("#",SUBSTITUTE(VLOOKUP($C13,Tabelle2!$C:$D,2,FALSE),""">","#",IF(ISERROR(SEARCH("EUR",$A13)),11,7)))+2,FIND("%",MID(VLOOKUP($C13,Tabelle2!$C:$D,2,FALSE),FIND("#",SUBSTITUTE(VLOOKUP($C13,Tabelle2!$C:$D,2,FALSE),""">","#",IF(ISERROR(SEARCH("EUR",$A13)),11,7)))+2,11))-1)/100,"") -> 0.376 | H13: =IFERROR(MID(VLOOKUP($C13,Tabelle2!$C:$D,2,FALSE),FIND("#",SUBSTITUTE(VLOOKUP($C13,Tabelle2!$C:$D,2,FALSE),""">","#",IF(ISERROR(SEARCH("EUR",$A13)),14,9)))+2,FIND("%",MID(VLOOKUP($C13,Tabelle2!$C:$D,2,FALSE),FIND("#",SUBSTITUTE(VLOOKUP($C13,Tabelle2!$C:$D,2,FALSE),""">","#",IF(ISERROR(SEARCH("EUR",$A13)),14,9)))+2,11))-1)/100,"") -> 1.9148
A14: Frankfurter Aktienfonds für Stiftungen T EUR | B14: A0M8HD | C14: DE000A0M8HD2 | D14: =IFERROR(MID(VLOOKUP($C14,Tabelle2!$C:$D,2,FALSE),FIND("#",SUBSTITUTE(VLOOKUP($C14,Tabelle2!$C:$D,2,FALSE),""">","#",IF(ISERROR(SEARCH("EUR",$A14)),2,1)))+2,FIND("%",MID(VLOOKUP($C14,Tabelle2!$C:$D,2,FALSE),FIND("#",SUBSTITUTE(VLOOKUP($C14,Tabelle2!$C:$D,2,FALSE),""">","#",IF(ISERROR(SEARCH("EUR",$A14)),2,1)))+2,10))-1)/100,"") -> 0.0119 | E14: =IFERROR(MID(VLOOKUP($C14,Tabelle2!$C:$D,2,FALSE),FIND("#",SUBSTITUTE(VLOOKUP($C14,Tabelle2!$C:$D,2,FALSE),""">","#",IF(ISERROR(SEARCH("EUR",$A14)),5,3)))+2,FIND("%",MID(VLOOKUP($C14,Tabelle2!$C:$D,2,FALSE),FIND("#",SUBSTITUTE(VLOOKUP($C14,Tabelle2!$C:$D,2,FALSE),""">","#",IF(ISERROR(SEARCH("EUR",$A14)),5,3)))+2,10))-1)/100,"") -> -0.1053 | F14: =IFERROR(MID(VLOOKUP($C14,Tabelle2!$C:$D,2,FALSE),FIND("#",SUBSTITUTE(VLOOKUP($C14,Tabelle2!$C:$D,2,FALSE),""">","#",IF(ISERROR(SEARCH("EUR",$A14)),8,5)))+2,FIND("%",MID(VLOOKUP($C14,Tabelle2!$C:$D,2,FALSE),FIND("#",SUBSTITUTE(VLOOKUP($C14,Tabelle2!$C:$D,2,FALSE),""">","#",IF(ISERROR(SEARCH("EUR",$A14)),8,5)))+2,10))-1)/100,"") -> 0.1259 | G14: =IFERROR(MID(VLOOKUP($C14,Tabelle2!$C:$D,2,FALSE),FIND("#",SUBSTITUTE(VLOOKUP($C14,Tabelle2!$C:$D,2,FALSE),""">","#",IF(ISERROR(SEARCH("EUR",$A14)),11,7)))+2,FIND("%",MID(VLOOKUP($C14,Tabelle2!$C:$D,2,FALSE),FIND("#",SUBSTITUTE(VLOOKUP($C14,Tabelle2!$C:$D,2,FALSE),""">","#",IF(ISERROR(SEARCH("EUR",$A14)),11,7)))+2,11))-1)/100,"") -> 0.2395 | H14: =IFERROR(MID(VLOOKUP($C14,Tabelle2!$C:$D,2,FALSE),FIND("#",SUBSTITUTE(VLOOKUP($C14,Tabelle2!$C:$D,2,FALSE),""">","#",IF(ISERROR(SEARCH("EUR",$A14)),14,9)))+2,FIND("%",MID(VLOOKUP($C14,Tabelle2!$C:$D,2,FALSE),FIND("#",SUBSTITUTE(VLOOKUP($C14,Tabelle2!$C:$D,2,FALSE),""">","#",IF(ISERROR(SEARCH("EUR",$A14)),14,9)))+2,11))-1)/100,"") -> 2.409
A15: Carmignac Investissement A EUR acc | B15: A0DP5W | C15: FR0010148981 | D15: =IFERROR(MID(VLOOKUP($C15,Tabelle2!$C:$D,2,FALSE),FIND("#",SUBSTITUTE(VLOOKUP($C15,Tabelle2!$C:$D,2,FALSE),""">","#",IF(ISERROR(SEARCH("EUR",$A15)),2,1)))+2,FIND("%",MID(VLOOKUP($C15,Tabelle2!$C:$D,2,FALSE),FIND("#",SUBSTITUTE(VLOOKUP($C15,Tabelle2!$C:$D,2,FALSE),""">","#",IF(ISERROR(SEARCH("EUR",$A15)),2,1)))+2,10))-1)/100,"") -> 0.1091 | E15: =IFERROR(MID(VLOOKUP($C15,Tabelle2!$C:$D,2,FALSE),FIND("#",SUBSTITUTE(VLOOKUP($C15,Tabelle2!$C:$D,2,FALSE),""">","#",IF(ISERROR(SEARCH("EUR",$A15)),5,3)))+2,FIND("%",MID(VLOOKUP($C15,Tabelle2!$C:$D,2,FALSE),FIND("#",SUBSTITUTE(VLOOKUP($C15,Tabelle2!$C:$D,2,FALSE),""">","#",IF(ISERROR(SEARCH("EUR",$A15)),5,3)))+2,10))-1)/100,"") -> -0.0404 | F15: =IFERROR(MID(VLOOKUP($C15,Tabelle2!$C:$D,2,FALSE),FIND("#",SUBSTITUTE(VLOOKUP($C15,Tabelle2!$C:$D,2,FALSE),""">","#",IF(ISERROR(SEARCH("EUR",$A15)),8,5)))+2,FIND("%",MID(VLOOKUP($C15,Tabelle2!$C:$D,2,FALSE),FIND("#",SUBSTITUTE(VLOOKUP($C15,Tabelle2!$C:$D,2,FALSE),""">","#",IF(ISERROR(SEARCH("EUR",$A15)),8,5)))+2,10))-1)/100,"") -> 0.1245 | G15: =IFERROR(MID(VLOOKUP($C15,Tabelle2!$C:$D,2,FALSE),FIND("#",SUBSTITUTE(VLOOKUP($C15,Tabelle2!$C:$D,2,FALSE),""">","#",IF(ISERROR(SEARCH("EUR",$A15)),11,7)))+2,FIND("%",MID(VLOOKUP($C15,Tabelle2!$C:$D,2,FALSE),FIND("#",SUBSTITUTE(VLOOKUP($C15,Tabelle2!$C:$D,2,FALSE),""">","#",IF(ISERROR(SEARCH("EUR",$A15)),11,7)))+2,11))-1)/100,"") -> 0.1724 | H15: =IFERROR(MID(VLOOKUP($C15,Tabelle2!$C:$D,2,FALSE),FIND("#",SUBSTITUTE(VLOOKUP($C15,Tabelle2!$C:$D,2,FALSE),""">","#",IF(ISERROR(SEARCH("EUR",$A15)),14,9)))+2,FIND("%",MID(VLOOKUP($C15,Tabelle2!$C:$D,2,FALSE),FIND("#",SUBSTITUTE(VLOOKUP($C15,Tabelle2!$C:$D,2,FALSE),""">","#",IF(ISERROR(SEARCH("EUR",$A15)),14,9)))+2,11))-1)/100,"") -> 0.9793

Sheet Tabelle2
A2: ING Fonds | B2: WKN | C2: ISIN | D2: Spalte1
A3: iShares Core MSCI World UCITS ETF USD (Acc) | B3: A0RPWH | C3: IE00B4L5Y983 | D3: =fwPerfString(C3) -> <tr><td>laufendes&nbsp;Jahr</td><td><span class="fw--table-cell_green">+9,13%</span></td><td><span class="fw--table-cell_green">+10,53%</span></td><td><span class="fw--table-cell_green">+9,75%</span></td></tr><tr><td>1&nbsp;Jahr</td><td><span class="fw--table-cell_green">+0,66%</span></td><td><span class="fw--table-cell_green">+9,82%</span></td><td><span class="fw--table-cell_green">+4,68%</span></td></tr><tr><td>3&nbsp;Jahre</td><td><span class="fw--table-cell_green">+46,71%</span></td><td><span class="fw--table-cell_green">+46,32%</span></td><td><span class="fw--table-cell_green">+35,17%</span></td></tr><tr><td>5&nbsp;Jahre</td><td><span class="fw--table-cell_green">+38,38%</span></td><td><span class="fw--table-cell_green">+67,39%</span></td><td><span class="fw--table-cell_green">+45,35%</span></td></tr> </tbody> </table> </div> </div> <div class="col-12 col-lg"> <h3 class="fw--h2 text-color_lightblue01">Annualisiert</h3> <div class="fw--table-wrapper f-table-overflow"> <table class="fw--table fw--table_responsive js-fw--table_responsive table-performances"> <thead> <tr> <th></th> <th>Fonds <span class="currency" style="background-color: #c8a4d4;">USD</span></th> <th>Fonds <span class="currency">EUR</span></th> <th>Sektor <span class="currency">EUR</span></th> </tr> </thead>
A4: ComStage MSCI World TRN UCITS ETF | B4: ETF110 | C4: LU0392494562 | D4: <tr><td>laufendes&nbsp;Jahr</td><td><span class="fw--table-cell_green">+9,91%</span></td><td><span class="fw--table-cell_green">+11,35%</span></td><td><span class="fw--table-cell_green">+9,75%</span></td></tr><tr><td>1&nbsp;Jahr</td><td><span class="fw--table-cell_green">+0,75%</span></td><td><span class="fw--table-cell_green">+9,91%</span></td><td><span class="fw--table-cell_green">+4,68%</span></td></tr><tr><td>3&nbsp;Jahre</td><td><span class="fw--table-cell_green">+46,59%</span></td><td><span class="fw--table-cell_green">+46,20%</span></td><td><span class="fw--table-cell_green">+35,17%</span></td></tr><tr><td>5&nbsp;Jahre</td><td><span class="fw--table-cell_green">+37,78%</span></td><td><span class="fw--table-cell_green">+66,66%</span></td><td><span class="fw--table-cell_green">+45,35%</span></td></tr><tr><td>10&nbsp;Jahre</td><td><span class="fw--table-cell_green">+201,14%</span></td><td><span class="fw--table-cell_green">+241,57%</span></td><td><span class="fw--table-cell_green">+165,02%</span></td></tr> </tbody> </table> </div> </div> <div class="col-12 col-lg"> <h3 class="fw--h2 text-color_lightblue01">Annualisiert</h3> <div class="fw--table-wrapper f-table-overflow"> <table class="fw--table fw--table_responsive js-fw--table_responsive table-performances"> <thead> <tr> <th></th> <th>Fonds <span class="currency" style="background-color: #c8a4d4;">USD</span></th> <th>Fonds <span class="currency">EUR</span></th> <th>Sektor <span class="currency">EUR</span></th> </tr> </thead>
A5: Lyxor MSCI World UCITS ETF D-EUR | B5: LYX0AG | C5: FR0010315770 | D5: <tr><td>laufendes&nbsp;Jahr</td><td><span class="fw--table-cell_green">+10,51%</span></td><td><span class="fw--table-cell_green">+9,75%</span></td></tr><tr><td>1&nbsp;Jahr</td><td><span class="fw--table-cell_green">+10,13%</span></td><td><span class="fw--table-cell_green">+4,68%</span></td></tr><tr><td>3&nbsp;Jahre</td><td><span class="fw--table-cell_green">+45,92%</span></td><td><span class="fw--table-cell_green">+35,17%</span></td></tr><tr><td>5&nbsp;Jahre</td><td><span class="fw--table-cell_green">+66,74%</span></td><td><span class="fw--table-cell_green">+45,35%</span></td></tr><tr><td>10&nbsp;Jahre</td><td><span class="fw--table-cell_green">+235,15%</span></td><td><span class="fw--table-cell_green">+165,02%</span></td></tr> </tbody> </table> </div> </div> <div class="col-12 col-lg"> <h3 class="fw--h2 text-color_lightblue01">Annualisiert</h3> <div class="fw--table-wrapper f-table-overflow"> <table class="fw--table fw--table_responsive js-fw--table_responsive table-performances"> <thead> <tr> <th></th> <th>Fonds in EUR</th> <th>Sektor in EUR</th> </tr> </thead>
A6: HSBC MSCI WORLD UCITS ETF | B6: A1C9KL | C6: DE000A1C9KL8 | D6: <tr><td>laufendes&nbsp;Jahr</td><td><span class="fw--table-cell_green">+9,13%</span></td><td><span class="fw--table-cell_green">+10,53%</span></td><td><span class="fw--table-cell_green">+9,75%</span></td></tr><tr><td>1&nbsp;Jahr</td><td><span class="fw--table-cell_green">+1,03%</span></td><td><span class="fw--table-cell_green">+10,22%</span></td><td><span class="fw--table-cell_green">+4,68%</span></td></tr><tr><td>3&nbsp;Jahre</td><td><span class="fw--table-cell_green">+47,59%</span></td><td><span class="fw--table-cell_green">+47,20%</span></td><td><span class="fw--table-cell_green">+35,17%</span></td></tr><tr><td>5&nbsp;Jahre</td><td><span class="fw--table-cell_green">+37,53%</span></td><td><span class="fw--table-cell_green">+66,36%</span></td><td><span class="fw--table-cell_green">+45,35%</span></td></tr> </tbody> </table> </div> </div> <div class="col-12 col-lg"> <h3 class="fw--h2 text-color_lightblue01">Annualisiert</h3> <div class="fw--table-wrapper f-table-overflow"> <table class="fw--table fw--table_responsive js-fw--table_responsive table-performances"> <thead> <tr> <th></th> <th>Fonds <span class="currency" style="background-color: #c8a4d4;">USD</span></th> <th>Fonds <span class="currency">EUR</span></th> <th>Sektor <span class="currency">EUR</span></th> </tr> </thead>
A7: Amundi MSCI World UCITS ETF - EUR (C) | B7: A2H59Q | C7: LU1681043599 | D7: <tr><td>laufendes&nbsp;Jahr</td><td><span class="fw--table-cell_green">+9,95%</span></td><td><span class="fw--table-cell_green">+9,75%</span></td></tr> </tbody> </table> </div> </div> <div class="col-12 col-lg"> <h3 class="fw--h2 text-color_lightblue01">Annualisiert</h3> <div class="fw--table-wrapper f-table-overflow"> <table class="fw--table fw--table_responsive js-fw--table_responsive table-performances"> <thead> <tr> <th></th> <th>Fonds in EUR</th> <th>Sektor in EUR</th> </tr> </thead>
A8: Xtrackers MSCI World Index UCITS ETF 1D | B8: A1XEY2 | C8: IE00BK1PV551 | D8: <tr><td>laufendes&nbsp;Jahr</td><td><span class="fw--table-cell_green">+9,88%</span></td><td><span class="fw--table-cell_green">+11,33%</span></td><td><span class="fw--table-cell_green">+9,75%</span></td></tr><tr><td>1&nbsp;Jahr</td><td><span class="fw--table-cell_green">+0,67%</span></td><td><span class="fw--table-cell_green">+9,82%</span></td><td><span class="fw--table-cell_green">+4,68%</span></td></tr><tr><td>3&nbsp;Jahre</td><td><span class="fw--table-cell_green">+46,69%</span></td><td><span class="fw--table-cell_green">+46,30%</span></td><td><span class="fw--table-cell_green">+35,17%</span></td></tr> </tbody> </table> </div> </div> <div class="col-12 col-lg"> <h3 class="fw--h2 text-color_lightblue01">Annualisiert</h3> <div class="fw--table-wrapper f-table-overflow"> <table class="fw--table fw--table_responsive js-fw--table_responsive table-performances"> <thead> <tr> <th></th> <th>Fonds <span class="currency" style="background-color: #c8a4d4;">USD</span></th> <th>Fonds <span class="currency">EUR</span></th> <th>Sektor <span class="currency">EUR</span></th> </tr> </thead>
A9: Xtrackers MSCI World Index UCITS ETF 1C | B9: A1XB5U | C9: IE00BJ0KDQ92 | D9: <tr><td>laufendes&nbsp;Jahr</td><td><span class="fw--table-cell_green">+9,88%</span></td><td><span class="fw--table-cell_green">+11,33%</span></td><td><span class="fw--table-cell_green">+9,75%</span></td></tr><tr><td>1&nbsp;Jahr</td><td><span class="fw--table-cell_green">+0,67%</span></td><td><span class="fw--table-cell_green">+9,83%</span></td><td><span class="fw--table-cell_green">+4,68%</span></td></tr><tr><td>3&nbsp;Jahre</td><td><span class="fw--table-cell_green">+46,70%</span></td><td><span class="fw--table-cell_green">+46,31%</span></td><td><span class="fw--table-cell_green">+35,17%</span></td></tr> </tbody> </table> </div> </div> <div class="col-12 col-lg"> <h3 class="fw--h2 text-color_lightblue01">Annualisiert</h3> <div class="fw--table-wrapper f-table-overflow"> <table class="fw--table fw--table_responsive js-fw--table_responsive table-performances"> <thead> <tr> <th></th> <th>Fonds <span class="currency" style="background-color: #c8a4d4;">USD</span></th> <th>Fonds <span class="currency">EUR</span></th> <th>Sektor <span class="currency">EUR</span></th> </tr> </thead>
A10: Invesco MSCI World UCITS ETF | B10: A0RGCS | C10: IE00B60SX394 | D10: <tr><td>laufendes&nbsp;Jahr</td><td><span class="fw--table-cell_green">+9,14%</span></td><td><span class="fw--table-cell_green">+10,54%</span></td><td><span class="fw--table-cell_green">+9,75%</span></td></tr><tr><td>1&nbsp;Jahr</td><td><span class="fw--table-cell_green">+0,70%</span></td><td><span class="fw--table-cell_green">+9,86%</span></td><td><span class="fw--table-cell_green">+4,68%</span></td></tr><tr><td>3&nbsp;Jahre</td><td><span class="fw--table-cell_green">+46,60%</span></td><td><span class="fw--table-cell_green">+46,21%</span></td><td><span class="fw--table-cell_green">+35,17%</span></td></tr><tr><td>5&nbsp;Jahre</td><td><span class="fw--table-cell_green">+37,30%</span></td><td><span class="fw--table-cell_green">+66,08%</span></td><td><span class="fw--table-cell_green">+45,35%</span></td></tr> </tbody> </table> </div> </div> <div class="col-12 col-lg"> <h3 class="fw--h2 text-color_lightblue01">Annualisiert</h3> <div class="fw--table-wrapper f-table-overflow"> <table class="fw--table fw--table_responsive js-fw--table_responsive table-performances"> <thead> <tr> <th></th> <th>Fonds <span class="currency" style="background-color: #c8a4d4;">USD</span></th> <th>Fonds <span class="currency">EUR</span></th> <th>Sektor <span class="currency">EUR</span></th> </tr> </thead>
A11: UBS ETF (IE) MSCI World UCITS ETF (USD) A-dis | B11: A1JVCA | C11: IE00B7KQ7B66 | D11: <tr><td>laufendes&nbsp;Jahr</td><td><span class="fw--table-cell_green">+9,13%</span></td><td><span class="fw--table-cell_green">+10,53%</span></td><td><span class="fw--table-cell_green">+9,75%</span></td></tr><tr><td>1&nbsp;Jahr</td><td><span class="fw--table-cell_green">+0,59%</span></td><td><span class="fw--table-cell_green">+9,74%</span></td><td><span class="fw--table-cell_green">+4,68%</span></td></tr><tr><td>3&nbsp;Jahre</td><td><span class="fw--table-cell_green">+46,30%</span></td><td><span class="fw--table-cell_green">+45,92%</span></td><td><span class="fw--table-cell_green">+35,17%</span></td></tr><tr><td>5&nbsp;Jahre</td><td><span class="fw--table-cell_green">+37,25%</span></td><td><span class="fw--table-cell_green">+66,02%</span></td><td><span class="fw--table-cell_green">+45,35%</span></td></tr> </tbody> </table> </div> </div> <div class="col-12 col-lg"> <h3 class="fw--h2 text-color_lightblue01">Annualisiert</h3> <div class="fw--table-wrapper f-table-overflow"> <table class="fw--table fw--table_responsive js-fw--table_responsive table-performances"> <thead> <tr> <th></th> <th>Fonds <span class="currency" style="background-color: #c8a4d4;">USD</span></th> <th>Fonds <span class="currency">EUR</span></th> <th>Sektor <span class="currency">EUR</span></th> </tr> </thead>
A12: iShares MSCI World UCITS ETF (Dist) | B12: A0HGV0 | C12: IE00B0M62Q58 | D12: <tr><td>laufendes&nbsp;Jahr</td><td><span class="fw--table-cell_green">+9,07%</span></td><td><span class="fw--table-cell_green">+10,47%</span></td><td><span class="fw--table-cell_green">+9,75%</span></td></tr><tr><td>1&nbsp;Jahr</td><td><span class="fw--table-cell_green">+0,40%</span></td><td><span class="fw--table-cell_green">+9,52%</span></td><td><span class="fw--table-cell_green">+4,68%</span></td></tr><tr><td>3&nbsp;Jahre</td><td><span class="fw--table-cell_green">+45,79%</span></td><td><span class="fw--table-cell_green">+45,41%</span></td><td><span class="fw--table-cell_green">+35,17%</span></td></tr><tr><td>5&nbsp;Jahre</td><td><span class="fw--table-cell_green">+36,84%</span></td><td><span class="fw--table-cell_green">+65,53%</span></td><td><span class="fw--table-cell_green">+45,35%</span></td></tr><tr><td>10&nbsp;Jahre</td><td><span class="fw--table-cell_green">+191,76%</span></td><td><span class="fw--table-cell_green">+230,93%</span></td><td><span class="fw--table-cell_green">+165,02%</span></td></tr> </tbody> </table> </div> </div> <div class="col-12 col-lg"> <h3 class="fw--h2 text-color_lightblue01">Annualisiert</h3> <div class="fw--table-wrapper f-table-overflow"> <table class="fw--table fw--table_responsive js-fw--table_responsive table-performances"> <thead> <tr> <th></th> <th>Fonds <span class="currency" style="background-color: #c8a4d4;">USD</span></th> <th>Fonds <span class="currency">EUR</span></th> <th>Sektor <span class="currency">EUR</span></th> </tr> </thead>
A13: Flossbach v. Storch SICAV - Multiple Opp. R | B13: A0M430 | C13: LU0323578657 | D13: =fwPerfString(C13) -> <tr><td>laufendes&nbsp;Jahr</td><td><span class="fw--table-cell_green">+6,44%</span></td><td><span class="fw--table-cell_green">+5,00%</span></td></tr><tr><td>1&nbsp;Jahr</td><td><span class="fw--table-cell_green">+3,74%</span></td><td><span class="fw--table-cell_red">-1,45%</span></td></tr><tr><td>3&nbsp;Jahre</td><td><span class="fw--table-cell_green">+20,89%</span></td><td><span class="fw--table-cell_green">+13,48%</span></td></tr><tr><td>5&nbsp;Jahre</td><td><span class="fw--table-cell_green">+37,60%</span></td><td><span class="fw--table-cell_green">+14,44%</span></td></tr><tr><td>10&nbsp;Jahre</td><td><span class="fw--table-cell_green">+191,48%</span></td><td><span class="fw--table-cell_green">+63,57%</span></td></tr> </tbody> </table> </div> </div> <div class="col-12 col-lg"> <h3 class="fw--h2 text-color_lightblue01">Annualisiert</h3> <div class="fw--table-wrapper f-table-overflow"> <table class="fw--table fw--table_responsive js-fw--table_responsive table-performances"> <thead> <tr> <th></th> <th>Fonds in EUR</th> <th>Sektor in EUR</th> </tr> </thead>
A14: Frankfurter Aktienfonds für Stiftungen T | B14: A0M8HD | C14: DE000A0M8HD2 | D14: =fwPerfString(C14) -> <tr><td>laufendes&nbsp;Jahr</td><td><span class="fw--table-cell_green">+1,19%</span></td><td><span class="fw--table-cell_green">+3,52%</span></td></tr><tr><td>1&nbsp;Jahr</td><td><span class="fw--table-cell_red">-10,53%</span></td><td><span class="fw--table-cell_red">-4,57%</span></td></tr><tr><td>3&nbsp;Jahre</td><td><span class="fw--table-cell_green">+12,59%</span></td><td><span class="fw--table-cell_green">+7,68%</span></td></tr><tr><td>5&nbsp;Jahre</td><td><span class="fw--table-cell_green">+23,95%</span></td><td><span class="fw--table-cell_green">+6,31%</span></td></tr><tr><td>10&nbsp;Jahre</td><td><span class="fw--table-cell_green">+240,90%</span></td><td><span class="fw--table-cell_green">+89,44%</span></td></tr> </tbody> </table> </div> </div> <div class="col-12 col-lg"> <h3 class="fw--h2 text-color_lightblue01">Annualisiert</h3> <div class="fw--table-wrapper f-table-overflow"> <table class="fw--table fw--table_responsive js-fw--table_responsive table-performances"> <thead> <tr> <th></th> <th>Fonds in EUR</th> <th>Sektor in EUR</th> </tr> </thead>
A15: Carmignac Investissement A EUR acc | B15: A0DP5W | C15: FR0010148981 | D15: =fwPerfString(C15) -> <tr><td>laufendes&nbsp;Jahr</td><td><span class="fw--table-cell_green">+10,91%</span></td><td><span class="fw--table-cell_green">+6,85%</span></td></tr><tr><td>1&nbsp;Jahr</td><td><span class="fw--table-cell_red">-4,04%</span></td><td><span class="fw--table-cell_red">-0,32%</span></td></tr><tr><td>3&nbsp;Jahre</td><td><span class="fw--table-cell_green">+12,45%</span></td><td><span class="fw--table-cell_green">+17,27%</span></td></tr><tr><td>5&nbsp;Jahre</td><td><span class="fw--table-cell_green">+17,24%</span></td><td><span class="fw--table-cell_green">+23,07%</span></td></tr><tr><td>10&nbsp;Jahre</td><td><span class="fw--table-cell_green">+97,93%</span></td><td><span class="fw--table-cell_green">+79,12%</span></td></tr><tr><td>15&nbsp;Jahre</td><td><span class="fw--table-cell_green">+179,09%</span></td><td><span class="fw--table-cell_green">+70,52%</span></td></tr><tr><td>20&nbsp;Jahre</td><td><span class="fw--table-cell_green">+453,31%</span></td><td><span class="fw--table-cell_green">+259,54%</span></td></tr> </tbody> </table> </div> </div> <div class="col-12 col-lg"> <h3 class="fw--h2 text-color_lightblue01">Annualisiert</h3> <div class="fw--table-wrapper f-table-overflow"> <table class="fw--table fw--table_responsive js-fw--table_responsive table-performances"> <thead> <tr> <th></th> <th>Fonds in EUR</th> <th>Sektor in EUR</th> </tr> </thead>
